[Event "Early-Titled-Tuesday-Blitz-March-26-2024"]
[Site "Chess.com"]
[Date "2024.03.26"]
[Round "5"]
[White "Mindhunter08"]
[Black "Irina_Mikhaylova"]
[Result "1/2-1/2"]
[WhiteElo "2665"]
[BlackElo "2341"]
[TimeControl "180+1"]
[EndTime "8:55:25 PDT"]
[Termination "Game drawn by repetition"]

1. e4 {[%clk 0:03:00.9]} 1... c5 {[%clk 0:03:00.1]} 2. Nf3 {[%clk 0:03:00.8]}
2... Nc6 {[%clk 0:03:00.6]} 3. Bb5 {[%clk 0:03:00.4]} 3... e6 {[%clk 0:03:00.5]}
4. Bxc6 {[%clk 0:02:52.5]} 4... bxc6 {[%clk 0:03:00.3]} 5. b3 {[%clk 0:02:48.5]}
5... f6 {[%clk 0:02:59.4]} 6. Ba3 {[%clk 0:02:45.3]} 6... Nh6 {[%clk 0:02:48.6]}
7. d4 {[%clk 0:02:37.2]} 7... cxd4 {[%clk 0:02:48.5]} 8. Bxf8 {[%clk 0:02:36.8]}
8... Kxf8 {[%clk 0:02:47.7]} 9. Qxd4 {[%clk 0:02:36.6]} 9... e5 {[%clk
0:02:25.5]} 10. Qd6+ {[%clk 0:02:11.3]} 10... Qe7 {[%clk 0:02:25]} 11. Qc7
{[%clk 0:02:10.9]} 11... Nf7 {[%clk 0:02:20.4]} 12. O-O {[%clk 0:02:03.2]} 12...
Qd8 {[%clk 0:02:15.8]} 13. Qxd8+ {[%clk 0:01:58.2]} 13... Nxd8 {[%clk
0:02:16.7]} 14. Rd1 {[%clk 0:01:45.1]} 14... Ke7 {[%clk 0:02:14.3]} 15. Nc3
{[%clk 0:01:42.6]} 15... Ne6 {[%clk 0:02:00.3]} 16. Rd2 {[%clk 0:01:38.1]} 16...
Rd8 {[%clk 0:01:50.3]} 17. Rad1 {[%clk 0:01:36.9]} 17... d6 {[%clk 0:01:50.6]}
18. Na4 {[%clk 0:01:32.6]} 18... Bb7 {[%clk 0:01:41.9]} 19. c4 {[%clk
0:01:27.6]} 19... c5 {[%clk 0:01:29.8]} 20. Nc3 {[%clk 0:01:08]} 20... Nd4
{[%clk 0:01:25.2]} 21. Ne1 {[%clk 0:00:59.3]} 21... Bc6 {[%clk 0:01:21]} 22. Nd3
{[%clk 0:00:34.8]} 22... a5 {[%clk 0:01:10.5]} 23. Nb2 {[%clk 0:00:34.7]} 23...
g6 {[%clk 0:00:53.1]} 24. f3 {[%clk 0:00:34.4]} 24... f5 {[%clk 0:00:39.7]} 25.
Kf2 {[%clk 0:00:33.7]} 25... Rab8 {[%clk 0:00:39.3]} 26. Ke3 {[%clk 0:00:23.4]}
26... f4+ {[%clk 0:00:39.1]} 27. Kf2 {[%clk 0:00:22.9]} 27... g5 {[%clk
0:00:39.3]} 28. h4 {[%clk 0:00:18.3]} 28... Rg8 {[%clk 0:00:34.1]} 29. hxg5
{[%clk 0:00:17.4]} 29... Rxg5 {[%clk 0:00:34.8]} 30. Rh1 {[%clk 0:00:18.1]}
30... h5 {[%clk 0:00:35]} 31. Kf1 {[%clk 0:00:18.3]} 31... Rbg8 {[%clk
0:00:34.8]} 32. Nba4 {[%clk 0:00:17.1]} 32... Bxa4 {[%clk 0:00:28.9]} 33. Nxa4
{[%clk 0:00:17.4]} 33... Rh8 {[%clk 0:00:22.7]} 34. Nb6 {[%clk 0:00:17.2]} 34...
Ke6 {[%clk 0:00:22.6]} 35. Nd5 {[%clk 0:00:16.3]} 35... h4 {[%clk 0:00:22.5]}
36. Rh3 {[%clk 0:00:16.4]} 36... Rg3 {[%clk 0:00:22.6]} 37. Rxg3 {[%clk
0:00:14.5]} 37... hxg3 {[%clk 0:00:22.6]} 38. Kg1 {[%clk 0:00:15.1]} 38... Ra8
{[%clk 0:00:18.3]} 39. Nb6 {[%clk 0:00:14]} 39... Rb8 {[%clk 0:00:18.6]} 40. Na4
{[%clk 0:00:13.2]} 40... Rh8 {[%clk 0:00:18.6]} 41. Rd1 {[%clk 0:00:13.2]} 41...
Rh2 {[%clk 0:00:18.5]} 42. Nc3 {[%clk 0:00:13.3]} 42... Rh8 {[%clk 0:00:17]} 43.
Rb1 {[%clk 0:00:13.1]} 43... Ra8 {[%clk 0:00:17.3]} 44. Na4 {[%clk 0:00:12.8]}
44... Rb8 {[%clk 0:00:17.6]} 45. Nc3 {[%clk 0:00:12.2]} 45... Rb4 {[%clk
0:00:17.6]} 46. Nd5 {[%clk 0:00:11]} 46... Rb7 {[%clk 0:00:17.7]} 47. Nc3 {[%clk
0:00:10.9]} 47... Nc2 {[%clk 0:00:17.8]} 48. Rc1 {[%clk 0:00:09.5]} 48... Ne3
{[%clk 0:00:14.6]} 49. Rb1 {[%clk 0:00:09.2]} 49... Rh7 {[%clk 0:00:14.7]} 50.
Rb2 {[%clk 0:00:06.4]} 50... Rh2 {[%clk 0:00:14.7]} 51. a3 {[%clk 0:00:06.7]}
51... Rh7 {[%clk 0:00:14.4]} 52. Rd2 {[%clk 0:00:07]} 52... Rb7 {[%clk
0:00:13.9]} 53. Nb5 {[%clk 0:00:07.6]} 53... Rb6 {[%clk 0:00:13.9]} 54. Rd3
{[%clk 0:00:06.6]} 54... Nc2 {[%clk 0:00:13.4]} 55. Rd2 {[%clk 0:00:05.8]} 55...
Nd4 {[%clk 0:00:13.8]} 56. Nxd4+ {[%clk 0:00:04.8]} 56... exd4 {[%clk
0:00:13.6]} 57. Rd3 {[%clk 0:00:05.7]} 57... Ke5 {[%clk 0:00:12.8]} 58. a4
{[%clk 0:00:05.6]} 58... Rb8 {[%clk 0:00:12.9]} 59. Kf1 {[%clk 0:00:06.1]} 59...
Rh8 {[%clk 0:00:13.5]} 60. Kg1 {[%clk 0:00:06.8]} 60... Rh2 {[%clk 0:00:13.6]}
61. Rd2 {[%clk 0:00:07.2]} 61... Rh8 {[%clk 0:00:13.7]} 62. Rd3 {[%clk
0:00:07.8]} 62... Rh7 {[%clk 0:00:14.2]} 63. Rd2 {[%clk 0:00:07.6]} 63... Rh6
{[%clk 0:00:14.7]} 64. Rd3 {[%clk 0:00:08.2]} 64... Rh2 {[%clk 0:00:13.7]} 65.
Rd2 {[%clk 0:00:08.5]} 65... Rh4 {[%clk 0:00:13.7]} 66. Rd3 {[%clk 0:00:08.8]}
66... Rh5 {[%clk 0:00:14.2]} 67. Rd2 {[%clk 0:00:09.2]} 67... Rh6 {[%clk
0:00:14.6]} 68. Rd3 {[%clk 0:00:09.8]} 68... Rh7 {[%clk 0:00:15.3]} 69. Rd2
{[%clk 0:00:10.3]} 69... Rb7 {[%clk 0:00:15.9]} 70. Rd3 {[%clk 0:00:10.9]} 70...
Rb6 {[%clk 0:00:16.5]} 71. Kf1 {[%clk 0:00:11.4]} 71... Rb7 {[%clk 0:00:16.7]}
72. Kg1 {[%clk 0:00:12.1]} 72... Rh7 {[%clk 0:00:17.4]} 1/2-1/2

[Event "Early-Titled-Tuesday-Blitz-March-26-2024"]
[Site "Chess.com"]
[Date "2024.03.26"]
[Round "5"]
[White "igorknyazev"]
[Black "iAspet"]
[Result "0-1"]
[WhiteElo "2242"]
[BlackElo "2466"]
[TimeControl "180+1"]
[EndTime "8:55:27 PDT"]
[Termination "iAspet won by resignation"]

1. e4 {[%clk 0:03:00.9]} 1... c5 {[%clk 0:02:59.5]} 2. f4 {[%clk 0:02:58.5]}
2... d5 {[%clk 0:02:56.9]} 3. exd5 {[%clk 0:02:58.4]} 3... Nf6 {[%clk
0:02:54.9]} 4. Bb5+ {[%clk 0:02:49]} 4... Bd7 {[%clk 0:02:46.3]} 5. Bxd7+ {[%clk
0:02:47]} 5... Qxd7 {[%clk 0:02:46.2]} 6. Nc3 {[%clk 0:02:40.2]} 6... Nxd5
{[%clk 0:02:43.4]} 7. Nxd5 {[%clk 0:02:39.7]} 7... Qxd5 {[%clk 0:02:43.4]} 8.
Qf3 {[%clk 0:02:40.4]} 8... Qd7 {[%clk 0:02:32.4]} 9. b3 {[%clk 0:02:37.7]} 9...
Nc6 {[%clk 0:02:24.5]} 10. Ne2 {[%clk 0:02:34.2]} 10... e6 {[%clk 0:02:06.6]}
11. Bb2 {[%clk 0:02:33.7]} 11... O-O-O {[%clk 0:02:04.8]} 12. O-O-O {[%clk
0:02:31.9]} 12... Qd5 {[%clk 0:01:59.5]} 13. Rhf1 {[%clk 0:02:24.5]} 13... Qxf3
{[%clk 0:01:48.8]} 14. Rxf3 {[%clk 0:02:23.7]} 14... Rg8 {[%clk 0:01:45.8]} 15.
Rh3 {[%clk 0:02:18.8]} 15... h6 {[%clk 0:01:43.4]} 16. g4 {[%clk 0:02:10.1]}
16... Be7 {[%clk 0:01:39.5]} 17. Ng3 {[%clk 0:02:04.3]} 17... Nd4 {[%clk
0:01:34.1]} 18. Rf1 {[%clk 0:01:43.8]} 18... b6 {[%clk 0:01:15]} 19. Ne4 {[%clk
0:01:16.4]} 19... Rd7 {[%clk 0:00:54.3]} 20. Bxd4 {[%clk 0:01:14.5]} 20... Rxd4
{[%clk 0:00:53.3]} 21. d3 {[%clk 0:01:14.9]} 21... f5 {[%clk 0:00:35.3]} 22.
gxf5 {[%clk 0:01:07.7]} 22... exf5 {[%clk 0:00:36.2]} 23. Ng3 {[%clk 0:00:50.6]}
23... Rf8 {[%clk 0:00:35.3]} 24. Rh5 {[%clk 0:00:48.6]} 24... Bd6 {[%clk
0:00:13.5]} 25. Nxf5 {[%clk 0:00:44.9]} 25... Bxf4+ {[%clk 0:00:12.5]} 26. Kd1
{[%clk 0:00:42.3]} 26... g6 {[%clk 0:00:08.1]} 27. Nxd4 {[%clk 0:00:42.1]} 27...
cxd4 {[%clk 0:00:06.6]} 28. Rd5 {[%clk 0:00:40]} 28... g5 {[%clk 0:00:07.1]} 29.
Rxd4 {[%clk 0:00:39.2]} 29... Re8 {[%clk 0:00:07.8]} 30. Re1 {[%clk 0:00:38.2]}
30... Rf8 {[%clk 0:00:06.8]} 31. Rc4+ {[%clk 0:00:37.7]} 31... Kd7 {[%clk
0:00:06.7]} 32. Ree4 {[%clk 0:00:37.3]} 32... Bxh2 {[%clk 0:00:05.9]} 33. d4
{[%clk 0:00:33.7]} 33... Bf4 {[%clk 0:00:05.4]} 34. d5 {[%clk 0:00:33.4]} 34...
h5 {[%clk 0:00:04.9]} 35. Rc6 {[%clk 0:00:31.8]} 35... h4 {[%clk 0:00:04.7]} 36.
Rh6 {[%clk 0:00:29.8]} 36... Rf7 {[%clk 0:00:04.5]} 37. Ree6 {[%clk 0:00:27.8]}
37... Bg3 {[%clk 0:00:04.4]} 38. Reg6 {[%clk 0:00:25.9]} 38... Bf4 {[%clk
0:00:04.7]} 39. Ke2 {[%clk 0:00:25.6]} 39... Re7+ {[%clk 0:00:04.2]} 40. Kd3
{[%clk 0:00:25.7]} 40... Rf7 {[%clk 0:00:04.1]} 41. Kd4 {[%clk 0:00:26]} 41...
Re7 {[%clk 0:00:01.3]} 42. c4 {[%clk 0:00:26.6]} 42... Rf7 {[%clk 0:00:01.8]}
43. c5 {[%clk 0:00:26.9]} 43... bxc5+ {[%clk 0:00:01.5]} 44. Kxc5 {[%clk
0:00:27.2]} 44... Be3+ {[%clk 0:00:02.3]} 45. Kc4 {[%clk 0:00:27.2]} 45... Bf4
{[%clk 0:00:03]} 46. b4 {[%clk 0:00:27.1]} 46... Kc7 {[%clk 0:00:03.3]} 47. a4
{[%clk 0:00:26.2]} 47... Kb7 {[%clk 0:00:03.7]} 48. b5 {[%clk 0:00:25.8]} 48...
Rc7+ {[%clk 0:00:04.2]} 49. Kd4 {[%clk 0:00:25.6]} 49... Re7 {[%clk 0:00:04]}
50. d6 {[%clk 0:00:25.8]} 50... Rd7 {[%clk 0:00:04.4]} 51. Kd5 {[%clk
0:00:26.1]} 51... Rd8 {[%clk 0:00:02.9]} 52. Rh7+ {[%clk 0:00:25.7]} 52... Kb6
{[%clk 0:00:03.5]} 53. Re6 {[%clk 0:00:22.1]} 53... Ka5 {[%clk 0:00:03.3]} 54.
Rxa7+ {[%clk 0:00:21.4]} 54... Kb4 {[%clk 0:00:03.9]} 55. b6 {[%clk 0:00:21.7]}
55... h3 {[%clk 0:00:04.2]} 56. b7 {[%clk 0:00:20.6]} 56... h2 {[%clk
0:00:04.1]} 57. Rh6 {[%clk 0:00:21.1]} 57... Rxd6+ {[%clk 0:00:04.1]} 58. Rxd6
{[%clk 0:00:19.5]} 58... h1=Q+ {[%clk 0:00:04.3]} 59. Ke6 {[%clk 0:00:16.7]}
59... Qh6+ {[%clk 0:00:04.5]} 60. Kf5 {[%clk 0:00:10.6]} 60... Qxd6 {[%clk
0:00:05.4]} 61. a5 {[%clk 0:00:07.9]} 61... Qe5+ {[%clk 0:00:05.7]} 62. Kg4
{[%clk 0:00:07.1]} 62... Qe2+ {[%clk 0:00:06]} 63. Kf5 {[%clk 0:00:07.3]} 63...
Qd3+ {[%clk 0:00:06.1]} 64. Kg4 {[%clk 0:00:07.3]} 64... Qg3+ {[%clk 0:00:06.4]}
65. Kf5 {[%clk 0:00:07.7]} 65... Qe3 {[%clk 0:00:05.7]} 66. Kg4 {[%clk
0:00:07.5]} 66... Qxa7 {[%clk 0:00:05.6]} 67. a6 {[%clk 0:00:08.4]} 67... Qxa6
{[%clk 0:00:05.5]} 68. Kf5 {[%clk 0:00:09.3]} 68... Qxb7 {[%clk 0:00:05.5]} 0-1

[Event "Early-Titled-Tuesday-Blitz-March-26-2024"]
[Site "Chess.com"]
[Date "2024.03.26"]
[Round "5"]
[White "Levanzovsky"]
[Black "vasblesk"]
[Result "0-1"]
[WhiteElo "2416"]
[BlackElo "2792"]
[TimeControl "180+1"]
[EndTime "8:55:31 PDT"]
[Termination "vasblesk won on time"]

1. Nf3 {[%clk 0:03:00.6]} 1... Nf6 {[%clk 0:02:58.2]} 2. g3 {[%clk 0:03:00.2]}
2... g6 {[%clk 0:02:57.2]} 3. Bg2 {[%clk 0:03:00.6]} 3... Bg7 {[%clk 0:02:50]}
4. O-O {[%clk 0:03:01.5]} 4... O-O {[%clk 0:02:49.8]} 5. Nc3 {[%clk 0:02:59.8]}
5... d5 {[%clk 0:02:49.3]} 6. d3 {[%clk 0:02:54.8]} 6... c5 {[%clk 0:02:49]} 7.
Re1 {[%clk 0:02:53]} 7... Nc6 {[%clk 0:02:46.5]} 8. e4 {[%clk 0:02:26.3]} 8...
dxe4 {[%clk 0:02:46.3]} 9. Nxe4 {[%clk 0:02:07.6]} 9... Nxe4 {[%clk 0:02:42.4]}
10. Rxe4 {[%clk 0:02:06.7]} 10... e5 {[%clk 0:02:40.5]} 11. Rh4 {[%clk
0:02:00.2]} 11... Bf6 {[%clk 0:02:35.3]} 12. Rc4 {[%clk 0:01:46.6]} 12... b6
{[%clk 0:02:23.7]} 13. Bh6 {[%clk 0:01:42.8]} 13... Re8 {[%clk 0:02:17.4]} 14.
Nxe5 {[%clk 0:01:13.4]} 14... Nxe5 {[%clk 0:01:51.2]} 15. Bxa8 {[%clk
0:01:12.2]} 15... Be6 {[%clk 0:01:32.9]} 16. Bg2 {[%clk 0:00:51.9]} 16... Nxc4
{[%clk 0:01:20.5]} 17. dxc4 {[%clk 0:00:51.6]} 17... Bxb2 {[%clk 0:01:16.5]} 18.
Bc6 {[%clk 0:00:42]} 18... Qxd1+ {[%clk 0:00:54.3]} 19. Rxd1 {[%clk 0:00:42.9]}
19... Rc8 {[%clk 0:00:54]} 20. h4 {[%clk 0:00:11.8]} 20... Bg7 {[%clk
0:00:45.9]} 21. Bxg7 {[%clk 0:00:11.7]} 21... Kxg7 {[%clk 0:00:46.8]} 22. Bd5
{[%clk 0:00:11.8]} 22... Rd8 {[%clk 0:00:46.9]} 23. a4 {[%clk 0:00:06.4]} 23...
Rd6 {[%clk 0:00:26.3]} 24. f4 {[%clk 0:00:05.7]} 24... Bd7 {[%clk 0:00:26.3]}
25. a5 {[%clk 0:00:03.4]} 25... bxa5 {[%clk 0:00:26.8]} 26. Ra1 {[%clk
0:00:03.8]} 26... a4 {[%clk 0:00:27.2]} 27. Kf2 {[%clk 0:00:04.4]} 27... Rb6
{[%clk 0:00:27.1]} 28. Ke3 {[%clk 0:00:04.2]} 28... f6 {[%clk 0:00:21.9]} 29.
Kd2 {[%clk 0:00:04.2]} 29... Kf8 {[%clk 0:00:22]} 30. Kc3 {[%clk 0:00:04.6]}
30... Ke7 {[%clk 0:00:22]} 31. Re1+ {[%clk 0:00:05.2]} 31... Kd8 {[%clk
0:00:22.2]} 32. Ra1 {[%clk 0:00:04.7]} 32... h6 {[%clk 0:00:17.6]} 33. Rd1
{[%clk 0:00:04.8]} 33... Kc7 {[%clk 0:00:17.6]} 34. Re1 {[%clk 0:00:05]} 34...
Rb8 {[%clk 0:00:13]} 35. Ra1 {[%clk 0:00:04.9]} 35... Re8 {[%clk 0:00:13]} 36.
Rb1 {[%clk 0:00:05.3]} 36... Re3+ {[%clk 0:00:13.1]} 37. Kd2 {[%clk 0:00:05.5]}
37... Rxg3 {[%clk 0:00:13.5]} 38. Rb7+ {[%clk 0:00:06]} 38... Kd6 {[%clk
0:00:14.2]} 39. Rxa7 {[%clk 0:00:05.1]} 39... a3 {[%clk 0:00:14.6]} 40. Ra6+
{[%clk 0:00:05.1]} 40... Kc7 {[%clk 0:00:13.6]} 41. Rxf6 {[%clk 0:00:03.1]}
41... Bf5 {[%clk 0:00:06.5]} 42. Ra6 {[%clk 0:00:01.5]} 42... Rh3 {[%clk
0:00:06.4]} 43. Ra7+ {[%clk 0:00:01.5]} 43... Kb6 {[%clk 0:00:06.1]} 44. Ra8
{[%clk 0:00:02.1]} 44... Rh2+ {[%clk 0:00:05.2]} 45. Kc3 {[%clk 0:00:02.2]}
45... Rxc2+ {[%clk 0:00:05.6]} 46. Kb3 {[%clk 0:00:02.7]} 46... Rc1 {[%clk
0:00:06.1]} 47. Rxa3 {[%clk 0:00:01.4]} 47... Rb1+ {[%clk 0:00:04.4]} 48. Kc3
{[%clk 0:00:01.6]} 48... Rg1 {[%clk 0:00:05.3]} 49. Rb3+ {[%clk 0:00:01.5]}
49... Kc7 {[%clk 0:00:05.1]} 50. Rb7+ {[%clk 0:00:02]} 50... Kc8 {[%clk
0:00:05.2]} 51. Rg7 {[%clk 0:00:02.1]} 51... Rg3+ {[%clk 0:00:05.8]} 52. Kd2
{[%clk 0:00:02]} 52... Rg4 {[%clk 0:00:06.6]} 53. Ke2 {[%clk 0:00:02.5]} 53...
Rxf4 {[%clk 0:00:06.6]} 54. Rg8+ {[%clk 0:00:03.4]} 54... Kc7 {[%clk 0:00:06.7]}
55. Rg7+ {[%clk 0:00:04.3]} 55... Kd6 {[%clk 0:00:06.6]} 56. Ke3 {[%clk
0:00:05.2]} 56... Rxh4 {[%clk 0:00:06.6]} 57. Rh7 {[%clk 0:00:05.5]} 57... Rh3+
{[%clk 0:00:05.6]} 58. Kf4 {[%clk 0:00:04.7]} 58... Rh4+ {[%clk 0:00:06.2]} 59.
Kg3 {[%clk 0:00:04.5]} 59... Rd4 {[%clk 0:00:07.1]} 60. Rxh6 {[%clk 0:00:04]}
60... Rd3+ {[%clk 0:00:06.5]} 61. Kf4 {[%clk 0:00:04.1]} 61... Rd4+ {[%clk
0:00:07.3]} 62. Kg5 {[%clk 0:00:04.2]} 62... Ke5 {[%clk 0:00:08]} 63. Rh4 {[%clk
0:00:02.7]} 63... Rxh4 {[%clk 0:00:07.4]} 64. Kxh4 {[%clk 0:00:03.6]} 64... Kf4
{[%clk 0:00:07.8]} 65. Be6 {[%clk 0:00:02.6]} 65... g5+ {[%clk 0:00:07.6]} 66.
Kh5 {[%clk 0:00:01.5]} 66... Bxe6 {[%clk 0:00:08.5]} 0-1

[Event "Early-Titled-Tuesday-Blitz-March-26-2024"]
[Site "Chess.com"]
[Date "2024.03.26"]
[Round "5"]
[White "ChainedDowntohell"]
[Black "KnightmareJoker"]
[Result "1-0"]
[WhiteElo "2506"]
[BlackElo "2297"]
[TimeControl "180+1"]
[EndTime "8:55:32 PDT"]
[Termination "ChainedDowntohell won by resignation"]

1. g3 {[%clk 0:03:00.9]} 1... d5 {[%clk 0:02:59.7]} 2. Nf3 {[%clk 0:03:00.4]}
2... Nf6 {[%clk 0:02:59.6]} 3. Bg2 {[%clk 0:02:59.4]} 3... e6 {[%clk 0:03:00.2]}
4. O-O {[%clk 0:02:59.3]} 4... Be7 {[%clk 0:03:00.9]} 5. c4 {[%clk 0:02:59.4]}
5... O-O {[%clk 0:03:00.8]} 6. b3 {[%clk 0:02:59.4]} 6... c5 {[%clk 0:03:00.3]}
7. cxd5 {[%clk 0:02:58.2]} 7... exd5 {[%clk 0:02:59.3]} 8. d4 {[%clk 0:02:58.3]}
8... cxd4 {[%clk 0:02:56.2]} 9. Nxd4 {[%clk 0:02:56.9]} 9... Nc6 {[%clk
0:02:56.8]} 10. Bb2 {[%clk 0:02:55.5]} 10... Be6 {[%clk 0:02:45.2]} 11. Nc3
{[%clk 0:02:50.3]} 11... Bc5 {[%clk 0:02:40.6]} 12. Na4 {[%clk 0:02:47.2]} 12...
Be7 {[%clk 0:02:25.6]} 13. Nxc6 {[%clk 0:02:40.6]} 13... bxc6 {[%clk 0:02:25.2]}
14. Qc2 {[%clk 0:02:38.4]} 14... Rc8 {[%clk 0:02:21.3]} 15. Nc5 {[%clk
0:02:36.5]} 15... Bxc5 {[%clk 0:02:18.1]} 16. Qxc5 {[%clk 0:02:35.9]} 16... Qb6
{[%clk 0:02:13.7]} 17. Rac1 {[%clk 0:01:56.8]} 17... Qxc5 {[%clk 0:02:13]} 18.
Rxc5 {[%clk 0:01:57.7]} 18... Nd7 {[%clk 0:02:13.5]} 19. Ra5 {[%clk 0:01:57.8]}
19... Rc7 {[%clk 0:02:10]} 20. Rc1 {[%clk 0:01:52.6]} 20... c5 {[%clk
0:02:04.6]} 21. e4 {[%clk 0:01:33]} 21... dxe4 {[%clk 0:02:04.4]} 22. Bxe4
{[%clk 0:01:32.1]} 22... Rfc8 {[%clk 0:02:01.6]} 23. Bd3 {[%clk 0:00:54.5]}
23... f6 {[%clk 0:01:55.3]} 24. Ra6 {[%clk 0:00:40.1]} 24... Bf7 {[%clk
0:01:50.9]} 25. Bf5 {[%clk 0:00:34.4]} 25... Rd8 {[%clk 0:01:22.4]} 26. Rd1
{[%clk 0:00:28.9]} 26... Bg6 {[%clk 0:01:04.3]} 27. Be6+ {[%clk 0:00:27.6]}
27... Bf7 {[%clk 0:01:04.1]} 28. Bf5 {[%clk 0:00:27.7]} 28... Bg6 {[%clk
0:01:02.8]} 29. Bg4 {[%clk 0:00:21.4]} 29... f5 {[%clk 0:01:03]} 30. Bf3 {[%clk
0:00:21.3]} 30... Kf8 {[%clk 0:00:53.4]} 31. Rad6 {[%clk 0:00:21.5]} 31... Ke7
{[%clk 0:00:52.7]} 32. Bc6 {[%clk 0:00:14.7]} 32... Be8 {[%clk 0:00:38.6]} 33.
Ba4 {[%clk 0:00:11.2]} 33... g6 {[%clk 0:00:31.9]} 34. Ba3 {[%clk 0:00:05.9]}
34... Bf7 {[%clk 0:00:27.6]} 35. Rxd7+ {[%clk 0:00:03.5]} 35... Rcxd7 {[%clk
0:00:26.4]} 36. Bxc5+ {[%clk 0:00:02.6]} 36... Ke6 {[%clk 0:00:25.4]} 37. Rxd7
{[%clk 0:00:01.8]} 37... Rxd7 {[%clk 0:00:25.8]} 38. Bxd7+ {[%clk 0:00:02.7]}
38... Kxd7 {[%clk 0:00:26.7]} 39. Bxa7 {[%clk 0:00:03.2]} 39... Kc6 {[%clk
0:00:26.4]} 40. Bd4 {[%clk 0:00:02.7]} 40... Kd5 {[%clk 0:00:24.9]} 41. Bb2
{[%clk 0:00:01.8]} 41... Ke4 {[%clk 0:00:24.9]} 42. Kg2 {[%clk 0:00:01.7]} 42...
Kd3 {[%clk 0:00:25.5]} 43. Bf6 {[%clk 0:00:02.3]} 43... Kc2 {[%clk 0:00:24.5]}
44. h4 {[%clk 0:00:01.1]} 44... Kb1 {[%clk 0:00:24.2]} 45. a4 {[%clk 0:00:01]}
45... Bxb3 {[%clk 0:00:24]} 46. a5 {[%clk 0:00:01.9]} 46... Kc2 {[%clk
0:00:23.6]} 47. Kf3 {[%clk 0:00:01.7]} 47... Kd3 {[%clk 0:00:23.1]} 48. a6
{[%clk 0:00:01.3]} 48... Bd5+ {[%clk 0:00:23.1]} 49. Kf4 {[%clk 0:00:01.4]}
49... Kc4 {[%clk 0:00:22.7]} 50. a7 {[%clk 0:00:02.2]} 50... Kb5 {[%clk
0:00:22.7]} 51. Be7 {[%clk 0:00:03.1]} 51... Ka6 {[%clk 0:00:21.4]} 52. Bc5
{[%clk 0:00:03.1]} 52... h6 {[%clk 0:00:17.9]} 53. Be3 {[%clk 0:00:04]} 53...
Be4 {[%clk 0:00:16.8]} 54. Ke5 {[%clk 0:00:04.5]} 54... h5 {[%clk 0:00:15.2]}
55. Kf6 {[%clk 0:00:04.5]} 55... Kb7 {[%clk 0:00:12.9]} 56. Bd4 {[%clk
0:00:04.9]} 56... Ka8 {[%clk 0:00:11.7]} 57. Kxg6 {[%clk 0:00:04.4]} 57... f4+
{[%clk 0:00:11.9]} 58. Kxh5 {[%clk 0:00:04.7]} 58... Bf3+ {[%clk 0:00:11.3]} 59.
Kg5 {[%clk 0:00:04.2]} 59... fxg3 {[%clk 0:00:11.9]} 60. fxg3 {[%clk 0:00:05.1]}
60... Be2 {[%clk 0:00:11.9]} 61. h5 {[%clk 0:00:06]} 61... Bd3 {[%clk
0:00:11.7]} 62. h6 {[%clk 0:00:06.9]} 62... Be4 {[%clk 0:00:12.2]} 63. Kf6
{[%clk 0:00:07.8]} 63... Bh7 {[%clk 0:00:12.3]} 64. Kg7 {[%clk 0:00:08.7]} 64...
Bf5 {[%clk 0:00:11.9]} 65. h7 {[%clk 0:00:09.3]} 65... Bxh7 {[%clk 0:00:11.8]}
66. Kxh7 {[%clk 0:00:10.2]} 66... Kb7 {[%clk 0:00:12.7]} 67. g4 {[%clk
0:00:10.9]} 67... Ka8 {[%clk 0:00:13.6]} 68. g5 {[%clk 0:00:11.8]} 68... Kb7
{[%clk 0:00:14.5]} 69. g6 {[%clk 0:00:12.7]} 69... Ka8 {[%clk 0:00:15.4]} 70. g7
{[%clk 0:00:13.4]} 70... Kb7 {[%clk 0:00:16.3]} 71. Kg6 {[%clk 0:00:13]} 71...
Ka6 {[%clk 0:00:17.2]} 72. a8=Q+ {[%clk 0:00:12.2]} 72... Kb5 {[%clk 0:00:17.7]}
73. Qd5+ {[%clk 0:00:12.4]} 73... Kb4 {[%clk 0:00:17.8]} 74. Qc5+ {[%clk
0:00:12.4]} 74... Kb3 {[%clk 0:00:18]} 75. Qc3+ {[%clk 0:00:12.6]} 75... Ka4
{[%clk 0:00:18.7]} 76. Qb2 {[%clk 0:00:12.7]} 76... Ka5 {[%clk 0:00:19]} 77. Bc5
{[%clk 0:00:13]} 1-0